[Event "American Cup Open Champions 2024"]
[Site "Saint Louis"]
[Date "2024.03.13"]
[Round "1.3"]
[White "Shankland, Sam"]
[Black "So, Wesley"]
[Result "0-1"]
[ECO "D31"]
[WhiteElo "2674"]
[BlackElo "2757"]
[Annotator "TA"]
[PlyCount "68"]
[EventDate "2024.03.11"]
[EventType "k.o."]
[EventCountry "USA"]
[SourceTitle "playchess.com"]
[Source "ChessBase"]
[SourceQuality "1"]
[TimeControl "5400+30"]

{[%evp 12,68,7,2,18,15,12,12,25,11,20,3,-6,-7,9,8,6,17,18,0,8,0,0,0,24,23,13,0,16,17,15,-12,0,-119,-124,-132,-124,-153,-159,-121,-118,-167,-173,-148,-160,-153,-136,-197,-162,-260,-257,-572,-587,-636,-604,-637,-639,-705,-697]} 1. d4 {[%emt 0:00:06]} d5 {[%emt 0:00:12]} 2. c4 {[%emt 0:00:05]} e6 {[%emt 0:00:04]} 3. Nc3 {[%emt 0:00:07]} Be7 {[%emt 0:00:06]} 4. cxd5 {[%emt 0:00:56]} exd5 {[%emt 0:00:05]} 5. Bf4 {[%emt 0:00:12]} c6 {[%emt 0:00:03]} 6. e3 {[%emt 0:00:25]} Bf5 {[%emt 0:00:06]} 7. h3 {[%emt 0:02:44] D31: Damengambit (Halbslawisch).} Qb6 $5 {[%emt 0:05:14][%mdl 4] Eine interessante Nebenvariante.} 8. Bd3 $146 {[%emt 0:06:03]} ({Predecessor:} 8. Qd2 Nf6 9. Nge2 Nbd7 10. Ng3 Bg6 11. h4 h5 12. Be2 a5 13. a3 O-O 14. Rc1 Rfe8 {½-½ Indjic,A (2636)-Azarov,S (2559) EU-ch 23rd Vrnjacka Banja 2023 (7)}) 8... Bxd3 {[%emt 0:03:57]} 9. Qxd3 {[%emt 0:00:04]} Nf6 {[%emt 0:00:08]} 10. Nge2 {[%emt 0:05:23]} O-O {[%emt 0:00:09]} 11. O-O-O {[%emt 0:01:52]} a5 {[%emt 0:07:24]} 12. g4 {[%emt 0:01:13]} Qa6 {[%emt 0:00:54]} 13. Ng3 {[%emt 0:04:09]} Qxd3 {[%emt 0:04:55]} 14. Rxd3 {[%emt 0:00:04]} g6 {[%emt 0:01:05]} 15. Re1 {[%emt 0:04:12]} Na6 {[%emt 0:05:59]} 16. a3 {[%emt 0:05:57]} Rad8 {[%emt 0:00:17]} 17. Kb1 {[%emt 0:08:06]} Ne8 {[%emt 0:10:22]} 18. e4 {[%emt 0:08:37]} (18. Bh6 $5) 18... dxe4 {[%emt 0:00:06]} 19. Ncxe4 {[%emt 0:00:54]} Ng7 {[%emt 0:02:58]} 20. Bd2 {[%emt 0:01:38]} a4 {[%emt 0:20:11]} 21. Nc3 {[%emt 0:09:41]} Nc5 {[%emt 0:04:54]} 22. Rxe7 {[%emt 0:02:41]} (22. Rf3 $11 {bleibt in der Remisbreite.} Nb3 (22... Rxd4 23. Rxe7 Rxd2 24. Nge4 $16) 23. Bh6) 22... Nxd3 $17 {[%emt 0:00:03]} 23. Nce4 {[%emt 0:00:08]} f5 {[%emt 0:02:29]} (23... Rxd4 24. Nf6+ Kh8 25. Bc3 $16) 24. Bh6 {[%emt 0:00:46]} Rf7 {[%emt 0:02:02]} 25. Rxf7 {[%emt 0:07:13]} Kxf7 {[%emt 0:00:04]} 26. Ng5+ {[%emt 0:00:04]} Kg8 $1 {[%emt 0:02:40]} (26... Kf6 27. Nxh7+ Kf7 28. Ng5+ Kf6 (28... Kg8 29. Bxg7 fxg4 30. hxg4 $15) 29. Nh7+ Kf7 30. Ng5+ Kf6 (30... Kg8 31. Bxg7 fxg4 32. Be5 $17) 31. Nh7+ $11) 27. Bxg7 {[%emt 0:00:05]} fxg4 {[%emt 0:00:04]} 28. h4 {[%emt 0:07:22]} Re8 {[%emt 0:01:23]} (28... Kxg7 29. Ne6+ Kf6 30. Nxd8 $14) 29. Bf6 {[%emt 0:01:29]} (29. Be5 $17 Nxe5 (29... Nxf2 30. Kc2 $15) 30. dxe5) 29... Rf8 {[%emt 0:08:42]} 30. N3e4 {[%emt 0:02:48]} (30. N5e4 $142) 30... h6 $1 $19 {[%emt 0:00:57]} (30... Nxf2 31. Nxf2 Rxf6 32. Nxg4 $15) 31. Kc2 $2 {[%emt 0:03:39] [#]} (31. Bg7 Kxg7 32. Ne6+ Kg8 33. Nxf8 Kxf8 34. Kc2 Ne1+ 35. Kc3) 31... Nxf2 $1 $19 {[%emt 0:02:47]} (31... Nf4 32. Be7 Rf5 (32... hxg5 33. Bxf8 Kxf8 34. hxg5 $11) 33. Nf6+ Rxf6 34. Bxf6 $11) 32. Nxf2 {[%emt 0:00:25] [#]} g3 $1 {[%emt 0:00:13]} ({Schlechter ist} 32... Rxf6 33. Nxg4 Rf4 34. Nxh6+ Kh8 35. Nhf7+ Kg8 36. Nh6+ Kh8 37. Kd3 $11) (32... hxg5 33. hxg5 (33. Nxg4 $2 {ist das falsche Schlagen.} gxh4 34. Bxh4 Rf4 $19) 33... g3 34. Nh3 $19) 33. Nfh3 {[%emt 0:02:26]} Rxf6 {[%emt 0:00:10]} 34. Ne4 {[%emt 0:00:03]} Rf1 {[%emt 0:00:34]} 0-1

[Event "American Cup Open Champions 2024"]
[Site "Saint Louis"]
[Date "2024.03.13"]
[Round "1.3"]
[White "Oparin, Grigoriy"]
[Black "Caruana, Fabiano"]
[Result "1/2-1/2"]
[ECO "D16"]
[WhiteElo "2671"]
[BlackElo "2804"]
[Annotator "TA"]
[PlyCount "74"]
[EventDate "2024.03.11"]
[EventType "k.o."]
[EventCountry "USA"]
[SourceTitle "playchess.com"]
[Source "ChessBase"]
[SourceQuality "1"]
[TimeControl "5400+30"]

{[%evp 16,74,13,10,15,11,11,9,14,10,0,2,0,0,5,-4,0,0,6,14,17,16,17,7,14,14,16,0,0,0,0,0,0,0,0,0,0,0,2,2,2,2,4,4,30,37,37,0,0,0,0,0,0,0,0,0,0,0,0,0,0]} 1. c4 {[%emt 0:00:03]} c6 {[%emt 0:00:40]} 2. Nf3 {[%emt 0:01:25]} d5 {[%emt 0:00:33]} 3. d4 {[%emt 0:00:29]} Nf6 {[%emt 0:00:07]} 4. Nc3 {[%emt 0:00:27]} dxc4 {[%emt 0:01:01]} 5. a4 {[%emt 0:01:31]} e6 {[%emt 0:00:14]} 6. e3 {[%emt 0:01:21]} c5 {[%emt 0:01:15]} 7. Bxc4 {[%emt 0:00:08]} Nc6 {[%emt 0:01:16]} 8. O-O {[%emt 0:00:12]} cxd4 {[%emt 0:01:20]} 9. exd4 {[%emt 0:00:07]} Be7 {[%emt 0:00:14]} 10. Qe2 {[%emt 0:10:06]} O-O {[%emt 0:00:57]} 11. Rd1 {[%emt 0:00:10]} Nb4 {[%emt 0:00:44]} 12. a5 {[%emt 0:07:32]} Bd7 {[%emt 0:04:26]} 13. Ne5 {[%emt 0:01:38]} Rc8 {[%emt 0:14:08]} 14. Bg5 {[%emt 0:09:14]} Nfd5 {[%emt 0:18:45]} 15. h4 {[%emt 0:34:24]} (15. Nxd5 {simplifies} exd5 16. Bxe7 Qxe7 17. Nxd7 Qxd7 18. Bb3) 15... Bc6 {[%emt 0:06:01]} 16. Nxc6 {[%emt 0:08:36]} Nxc6 {[%emt 0:02:13]} 17. Bxd5 {[%emt 0:00:29]} exd5 {[%emt 0:00:05]} 18. Bxe7 {[%emt 0:00:13]} Nxe7 {[%emt 0:01:40]} 19. a6 {[%emt 0:00:05]} Rb8 {[%emt 0:02:29]} 20. g3 {[%emt 0:03:20]} h6 {[%emt 0:01:31]} 21. Qe5 {[%emt 0:10:45]} bxa6 {[%emt 0:01:57]} 22. Rxa6 {[%emt 0:00:04]} Rxb2 {[%emt 0:00:13]} 23. Rd6 {[%emt 0:00:04][%cal Ba6d6,Bd6d5,Bd5c5,Bc5c7][%mdl 32]} Qc7 {[%emt 0:03:21] [#] aiming for ...Nc8.} 24. Nxd5 {[%emt 0:00:05]} Nxd5 {[%emt 0:00:03]} 25. Rxd5 {[%emt 0:00:05]} Qc2 {[%emt 0:08:41]} 26. Rf1 {[%emt 0:00:08]} Rb1 {[%emt 0:00:16]} 27. Rc5 {[%emt 0:01:18]} Rxf1+ {[%emt 0:00:39]} 28. Kxf1 $11 {[%emt 0:00:03][%mdl 4096] Endgame. KQR-KQR} Qb1+ {[%emt 0:01:55]} 29. Kg2 {[%emt 0:00:05]} Qb7+ {[%emt 0:00:06]} 30. d5 {[%emt 0:01:04]} Rd8 {[%emt 0:00:14]} 31. Rc7 {[%emt 0:00:09]} Qxd5+ {[%emt 0:00:06] The position is equal.} 32. Qxd5 {[%emt 0:00:04]} Rxd5 {[%emt 0:00:04]} 33. Rxa7 {[%emt 0:00:04] KR-KR} h5 {[%emt 0:00:03]} 34. Kf3 {[%emt 0:00:05]} Rd8 {[%emt 0:00:05]} 35. Kg2 {[%emt 0:00:04]} Rd5 {[%emt 0:00:02]} 36. Kf3 {[%emt 0:00:04]} Rd8 {[%emt 0:00:02]} 37. Kg2 {[%emt 0:00:05]} Rd5 {[%emt 0:00:12] Weighted Error Value: White=0.03 (flawless) /Black=0.02 (flawless) .  Inaccurate:     	White=1     	Black=1      OK:         	White=15    	Black=13     Best:        	---       	Black=1} 1/2-1/2

[Event "American Cup Open Champions 2024"]
[Site "Saint Louis"]
[Date "2024.03.12"]
[Round "1.4"]
[White "Dominguez Perez, Leinier"]
[Black "Robson, Ray"]
[Result "1/2-1/2"]
[ECO "B90"]
[WhiteElo "2749"]
[BlackElo "2696"]
[Annotator "TA"]
[PlyCount "242"]
[EventDate "2024.03.11"]
[EventType "k.o."]
[EventCountry "USA"]
[SourceTitle "playchess.com"]
[Source "ChessBase"]
[SourceQuality "1"]
[TimeControl "900+10"]

{[%evp 20,242,13,15,12,27,29,28,28,23,29,19,39,0,14,27,34,53,47,34,35,46,27,33,46,52,45,0,38,43,64,41,66,22,9,19,75,0,0,0,71,80,73,56,63,61,56,68,64,66,60,58,70,70,70,70,70,70,70,69,70,70,69,69,69,69,69,69,69,69,69,69,69,69,69,69,69,69,70,70,70,70,70,70,70,70,70,69,69,69,70,69,70,69,69,69,70,70,70,70,70,70,70,70,70,70,70,70,70,70,70,69,69,69,69,69,67,54,58,58,66,62,62,51,51,8,51,0,0,0,0,0,0,0,0,0,0,0,0,0,0,0,0,0,0,0,8,0,0,0,0,0,8,0,0,0,8,0,0,0,0,0,0,0,0,0,0,0,0,0,8,8,8,0,0,0,0,0,0,0,0,0,0,0,0,0,0,0,0,0,0,0,0,0,0,0,0,0,0,0,0,0,0,0,0,0,0,0,0,0,0,0,0,0,0,0,0,0,0,0,0,0,0,0,0]} 1. e4 {[%emt 0:00:02]} c5 {[%emt 0:00:02]} 2. Nf3 {[%emt 0:00:02]} d6 {[%emt 0:00:02]} 3. d4 {[%emt 0:00:02]} cxd4 {[%emt 0:00:02]} 4. Nxd4 {[%emt 0:00:02]} Nf6 {[%emt 0:00:02]} 5. Nc3 {[%emt 0:00:01]} a6 {[%emt 0:00:02]} 6. f3 {[%emt 0:00:02]} e5 {[%emt 0:00:04]} 7. Nb3 {[%emt 0:00:02]} Be6 {[%emt 0:00:02]} 8. Be3 {[%emt 0:00:01]} Be7 {[%emt 0:00:05]} 9. Qd2 {[%emt 0:00:01]} h5 {[%emt 0:00:04]} 10. Nd5 {[%emt 0:00:02]} Nxd5 {[%emt 0:00:13]} 11. exd5 {[%emt 0:00:02]} Bf5 {[%emt 0:00:02]} 12. Be2 {[%emt 0:00:02]} Bh4+ {[%emt 0:00:12]} 13. g3 {[%emt 0:00:02]} Be7 {[%emt 0:00:01] Weiß hat minimalen Vorteil.} 14. O-O-O {[%emt 0:00:03]} Nd7 {[%emt 0:00:08]} 15. Kb1 {[%emt 0:00:01]} Rc8 {[%emt 0:00:15]} 16. Rc1 {[%emt 0:00:02]} b5 {[%emt 0:00:09]} 17. Rhd1 {[%emt 0:00:02][%cal Bh1d1,Bd1c1,Bc1c8][%mdl 32]} Qc7 {[%emt 0:00:32]} 18. Bd3 {[%emt 0:00:05]} Bxd3 {[%emt 0:00:15]} 19. cxd3 {[%emt 0:00:02]} Qd8 {[%emt 0:00:54]} 20. Rxc8 {[%emt 0:00:02]} Qxc8 {[%emt 0:00:02]} 21. Rc1 {[%emt 0:00:01]} Qa8 {[%emt 0:01:19]} 22. Na5 $1 {[%emt 0:00:01]} Qxd5 {[%emt 0:00:14][%cal Oe7d8]} 23. Rc8+ {[%emt 0:00:01]} Bd8 {[%emt 0:00:01][%cal Oe8g8]} 24. Nc6 {[%emt 0:00:01][%csl Gc6][%cal Rc8d8] [#]} O-O $1 {[%emt 0:00:01]} 25. Nxd8 {[%emt 0:00:02]} Qxf3 {[%emt 0:00:02]} 26. a3 {[%emt 0:00:00][%cal Od8c6]} Kh7 {[%emt 0:00:27]} 27. Qc1 {[%emt 0:00:01]} h4 {[%emt 0:01:13] [#]} 28. gxh4 {[%emt 0:04:01]} ({Günstiger ist} 28. Qc6 $1 $16 {[%cal Rc6f3]} Qxe3 (28... Qxc6 $2 29. Rxc6 d5 30. Nb7 $18) 29. Qxd7 Qxd3+ 30. Rc2) 28... Nc5 $1 $11 {[%emt 0:00:30]} 29. Bxc5 {[%emt 0:01:27]} Qxd3+ {[%emt 0:04:12]} (29... dxc5 $11 30. Rb8 (30. Qxc5 Qxd3+ 31. Qc2 e4 $11) 30... e4 31. dxe4 Qd3+ 32. Ka2 Rxd8 33. Rxd8 Qxd8 34. Qxc5 Qxh4 35. Qf5+ Kh6) 30. Qc2 $16 {[%emt 0:00:33]} Qxc2+ {[%emt 0:00:05]} 31. Kxc2 {[%emt 0:00:02]} dxc5 {[%emt 0:00:03][%mdl 4096] Endspiel. KRN-KR} 32. Rb8 {[%emt 0:00:32]} Re8 $1 {[%emt 0:00:43]} 33. Nc6 {[%emt 0:05:41]} Re6 {[%emt 0:00:02]} 34. Rc8 {[%emt 0:00:47]} e4 {[%emt 0:02:12]} 35. Kd1 {[%emt 0:01:28]} e3 {[%emt 0:01:04]} 36. Ke2 {[%emt 0:02:18]} f5 {[%emt 0:03:24][%cal Bf7f5,Bf5f4][%mdl 32]} 37. Nb8 {[%emt 0:00:02]} f4 {[%emt 0:00:19][%cal Of4f3] Droht stark ...f3+!} 38. Rf8 $1 {[%emt 0:00:02]} (38. Rxc5 $2 f3+ 39. Kxf3 e2 $19) 38... Rb6 {[%emt 0:02:04]} 39. Nd7 {[%emt 0:01:02]} Rd6 {[%emt 0:00:03]} 40. Nxc5 {[%emt 0:00:02][%cal Oc5d3] Und jetzt Nd3! wäre schön.} Rd2+ {[%emt 0:00:06]} 41. Ke1 {[%emt 0:01:38] b4 wäre nun fies.} Rxb2 {[%emt 0:00:31]} 42. Rxf4 {[%emt 0:00:57]} ({Bitte nicht} 42. Nxa6 Rb1+ 43. Ke2 Rb2+ 44. Kf1 Rb1+ (44... Rxh2 45. Rxf4 Rc2 46. Rd4 $18) (44... Rf2+ 45. Ke1 $11) 45. Ke2 Rb2+ 46. Kf1 Rb1+ (46... Rxh2 47. Rxf4 Rc2 48. Re4 $16) (46... Rf2+ 47. Ke1 $11) 47. Ke2 $11) 42... Rxh2 {[%emt 0:00:03]} 43. Nxa6 {[%emt 0:00:24] Zielt auf Nc7 ab.} Ra2 {[%emt 0:00:07]} 44. Nc7 {[%emt 0:00:16]} Rxa3 {[%emt 0:00:07]} 45. Nxb5 {[%emt 0:00:25]} Ra1+ {[%emt 0:00:16]} 46. Ke2 {[%emt 0:00:01][%cal Ob5d6]} g5 {[%emt 0:00:04]} 47. hxg5 {[%emt 0:00:13][%cal Ob5c7] Droht Nc7! und aus.} Kg6 {[%emt 0:00:02]} 48. Rg4 {[%emt 0:00:19][%cal Ob5d4] Nd4! ist eine echte Drohung.} (48. Kxe3 {vereinfacht} Kxg5 49. Rb4 Rf1 50. Nd4) 48... Ra5 {[%emt 0:00:04]} 49. Rb4 {[%emt 0:00:09]} Kxg5 {[%emt 0:00:03]} 50. Kxe3 {[%emt 0:00:02]} Ra1 {[%emt 0:00:10]} 51. Nd4 {[%emt 0:00:04]} Re1+ {[%emt 0:00:08]} 52. Kf2 {[%emt 0:00:01]} Ra1 {[%emt 0:00:06]} 53. Nc2 {[%emt 0:00:10]} Ra2 {[%emt 0:00:24]} 54. Rc4 {[%emt 0:00:00]} Kf5 {[%emt 0:00:05]} 55. Ke3 {[%emt 0:00:03]} Ke5 {[%emt 0:00:10]} 56. Nb4 {[%emt 0:00:19]} Ra3+ {[%emt 0:00:15]} 57. Nd3+ {[%emt 0:00:01]} Kd5 {[%emt 0:00:04]} 58. Rc5+ {[%emt 0:00:01]} Kd6 {[%emt 0:00:02][%cal Oa3d3]} 59. Rb5 {[%emt 0:00:03]} Ra4 {[%emt 0:00:12]} 60. Nb4 {[%emt 0:00:06]} Ra1 {[%emt 0:00:20]} 61. Kd4 {[%emt 0:00:04]} Rd1+ {[%emt 0:00:07]} 62. Nd3 {[%emt 0:00:02]} Ke6 {[%emt 0:00:27]} 63. Ke4 {[%emt 0:00:06]} Kf6 {[%emt 0:00:16]} 64. Ra5 {[%emt 0:00:56]} Rb1 {[%emt 0:00:13]} 65. Ra6+ {[%emt 0:00:13]} Kg5 {[%emt 0:00:03]} 66. Rd6 {[%emt 0:00:12]} Ra1 {[%emt 0:00:09]} 67. Rc6 {[%emt 0:00:10]} Ra4+ {[%emt 0:00:14]} 68. Ke5 {[%emt 0:00:03]} Kg4 {[%emt 0:00:19]} 69. Rc3 {[%emt 0:00:15]} Ra8 {[%emt 0:00:13]} 70. Nf2+ {[%emt 0:00:02]} Kg5 {[%emt 0:00:10]} 71. Rg3+ {[%emt 0:00:02]} Kh4 {[%emt 0:00:06]} 72. Rg2 {[%emt 0:00:33]} Rf8 {[%emt 0:00:15]} 73. Ne4 {[%emt 0:00:15]} (73. Ke4 $14) 73... Re8+ {[%emt 0:00:04] Die Stellung ist ausgeglichen.} 74. Kf5 {[%emt 0:00:03][%cal Rg2h2]} Rf8+ {[%emt 0:00:04]} 75. Nf6 {[%emt 0:00:02]} Kh3 {[%emt 0:00:07]} 76. Rg6 {[%emt 0:00:02]} Ra8 {[%emt 0:00:15]} 77. Kf4 {[%emt 0:00:01]} Ra4+ {[%emt 0:00:19]} 78. Ne4 {[%emt 0:00:03]} Kh2 {[%emt 0:00:07]} 79. Rc6 {[%emt 0:00:27]} Rb4 {[%emt 0:00:13]} 80. Kf3 {[%emt 0:00:03]} Rb2 {[%emt 0:00:12]} 81. Rc3 {[%emt 0:00:35]} Kg1 {[%emt 0:00:10]} 82. Rd3 {[%emt 0:00:16]} Ra2 {[%emt 0:00:09]} 83. Rb3 {[%emt 0:00:12]} Rc2 {[%emt 0:00:09]} 84. Rb5 {[%emt 0:00:20]} Ra2 {[%emt 0:00:10]} 85. Rb3 {[%emt 0:00:10]} Rc2 {[%emt 0:00:03]} 86. Rb1+ {[%emt 0:00:04]} Kh2 {[%emt 0:00:02]} 87. Rd1 {[%emt 0:00:20]} Ra2 {[%emt 0:00:24]} 88. Nf2 {[%emt 0:00:10][%csl Gf2][%cal Rd1h1]} Ra3+ {[%emt 0:00:05]} 89. Nd3 {[%emt 0:00:02]} Rc3 {[%emt 0:00:17]} 90. Rd2+ {[%emt 0:00:06]} Kh3 {[%emt 0:00:03]} 91. Rd1 {[%emt 0:00:13][%cal Rd1h1]} Kh4 {[%emt 0:00:08]} 92. Kf4 {[%emt 0:00:01][%cal Rd1h1]} Rc4+ {[%emt 0:00:09]} 93. Kf5 {[%emt 0:00:01]} Kg3 {[%emt 0:00:11]} 94. Rg1+ {[%emt 0:00:04]} Kf3 {[%emt 0:00:06]} 95. Ne5+ {[%emt 0:00:01]} Kf2 {[%emt 0:00:02]} 96. Ra1 {[%emt 0:00:02]} Rh4 {[%emt 0:00:23]} 97. Ra2+ {[%emt 0:00:06]} Ke3 {[%emt 0:00:13]} 98. Ra3+ {[%emt 0:00:04]} Ke2 {[%emt 0:00:07]} 99. Nd3 {[%emt 0:00:22]} Rc4 {[%emt 0:00:15]} 100. Ke5 {[%emt 0:00:02] Es drohte Rd4} Kd2 {[%emt 0:00:12]} 101. Nf2 {[%emt 0:00:06]} Rc8 {[%emt 0:00:04]} 102. Ne4+ {[%emt 0:00:04]} Ke2 {[%emt 0:00:06]} 103. Nd6 {[%emt 0:00:12] Wehrt Re8+ ab} Rd8 {[%emt 0:00:08]} 104. Nc4 {[%emt 0:00:07]} Re8+ {[%emt 0:00:15]} 105. Kd4 {[%emt 0:00:01]} Rd8+ {[%emt 0:00:11]} 106. Ke4 {[%emt 0:00:01]} Re8+ {[%emt 0:00:05]} 107. Ne5 {[%emt 0:00:02]} Kd2 {[%emt 0:00:08]} 108. Rh3 {[%emt 0:00:04]} Kc2 {[%emt 0:00:08]} 109. Rh7 {[%emt 0:00:13]} Kc3 {[%emt 0:00:15]} 110. Rc7+ {[%emt 0:00:09]} Kd2 {[%emt 0:00:07]} 111. Rc5 {[%emt 0:00:02]} Re7 {[%emt 0:00:20]} 112. Kd4 {[%emt 0:00:09]} Re8 {[%emt 0:00:08]} 113. Ra5 {[%emt 0:00:25]} Rd8+ {[%emt 0:00:07]} 114. Ke4 {[%emt 0:00:01]} Re8 {[%emt 0:00:06]} 115. Ra7 {[%emt 0:00:03]} Kc3 {[%emt 0:00:08]} 116. Kd5 {[%emt 0:00:01]} Rd8+ {[%emt 0:00:04]} 117. Nd7 {[%emt 0:00:02]} Kd3 {[%emt 0:00:11]} 118. Ke5 {[%emt 0:00:09][%cal Oa7a1]} ({Schwächer ist} 118. Ra3+ Kc2 $18) 118... Re8+ {[%emt 0:00:09]} 119. Kd5 {[%emt 0:00:01]} Rd8 {[%emt 0:00:01]} 120. Ke5 {[%emt 0:00:02]} ({Weniger gut wäre} 120. Ra3+ Kd2 $18) 120... Re8+ {[%emt 0:00:01]} 121. Kd5 {[%emt 0:00:01]} Rd8 {[%emt 0:00:05] Gewichteter Fehlerwert: Weiß=0.05 (makellos) /Schwarz=0.05 (makellos) .  Fehler:       	Weiß=2     	Schwarz=2     Ungenau:       	Weiß=3     	Schwarz=2     OK:         	Weiß=41    	Schwarz=40    Bester:       	Weiß=3     	Schwarz=5     Stark:        	Weiß=2     	Schwarz=3} 1/2-1/2

[Event "American Cup Open Champions 2024"]
[Site "Saint Louis"]
[Date "2024.03.12"]
[Round "1.4"]
[White "Aronian, Levon"]
[Black "Sevian, Samuel"]
[Result "1/2-1/2"]
[ECO "E04"]
[WhiteElo "2722"]
[BlackElo "2697"]
[Annotator "TA"]
[PlyCount "76"]
[EventDate "2024.03.11"]
[EventType "k.o."]
[EventCountry "USA"]
[SourceTitle "playchess.com"]
[Source "ChessBase"]
[SourceQuality "1"]
[TimeControl "900+10"]

{[%evp 18,76,16,17,33,0,0,0,6,0,0,-1,8,0,0,-8,0,0,0,0,0,0,0,0,-7,-15,-14,-14,-26,-14,0,0,0,0,0,0,0,0,0,0,0,0,0,0,0,0,0,0,0,0,0,0,0,0,0,0,0,0,0,0,0]} 1. Nf3 {[%emt 0:00:03]} Nf6 {[%emt 0:00:02]} 2. g3 {[%emt 0:00:06]} d5 {[%emt 0:00:04]} 3. Bg2 {[%emt 0:00:03]} c5 {[%emt 0:00:01]} 4. O-O {[%emt 0:00:11]} Nc6 {[%emt 0:00:02]} 5. d4 {[%emt 0:00:02]} e6 {[%emt 0:00:00]} 6. c4 {[%emt 0:00:46]} dxc4 {[%emt 0:00:02]} 7. dxc5 {[%emt 0:00:11]} Qxd1 {[%emt 0:00:01]} 8. Rxd1 {[%emt 0:00:01]} Bxc5 {[%emt 0:00:02]} 9. Nbd2 {[%emt 0:00:03]} c3 {[%emt 0:00:01]} 10. bxc3 {[%emt 0:00:01]} O-O {[%emt 0:00:03]} 11. Ne1 {[%emt 0:00:11]} Rd8 {[%emt 0:00:01]} 12. Nd3 {[%emt 0:00:09]} Be7 {[%emt 0:00:22]} 13. Rb1 {[%emt 0:00:35]} Nd5 {[%emt 0:03:39]} 14. Bb2 {[%emt 0:00:01]} Nb6 {[%emt 0:01:18]} 15. c4 {[%emt 0:00:28][%cal Bc3c4,Bc4c5][%mdl 32]} Bd7 {[%emt 0:01:32][%cal Bc8d7,Bd7e8,Be8g6][%mdl 32]} 16. Rdc1 {[%emt 0:00:40]} Be8 {[%emt 0:00:19]} 17. Ba1 {[%emt 0:00:24]} Rab8 $1 {[%emt 0:00:21]} 18. c5 {[%emt 0:00:40]} Nd5 {[%emt 0:01:37]} 19. Nc4 {[%emt 0:00:43]} f6 {[%emt 0:00:46]} 20. Rb3 {[%emt 0:00:06]} Bg6 {[%emt 0:01:30]} 21. Nd6 {[%emt 0:01:00]} Bxd6 {[%emt 0:00:27]} 22. cxd6 {[%emt 0:00:02]} Rxd6 {[%emt 0:00:01]} 23. Nc5 {[%emt 0:00:00]} Nb6 {[%emt 0:00:34] The position is equal.} 24. Nxb7 {[%emt 0:00:13]} Rxb7 {[%emt 0:00:01]} 25. Bxc6 {[%emt 0:00:01] This pair of bishops is nice.} Rc7 {[%emt 0:00:16]} 26. Rbc3 {[%emt 0:00:01]} Rd2 {[%emt 0:02:32][%csl LRa2,LRe2]} 27. a4 {[%emt 0:00:04][%cal Ba2a4,Ba4a5][%mdl 32] Threatens to win with a5.} Rxe2 {[%emt 0:00:07]} 28. a5 {[%emt 0:00:37]} Nd5 {[%emt 0:00:02]} 29. Bxd5 {[%emt 0:00:02]} Rxc3 {[%emt 0:00:01]} 30. Bxe6+ {[%emt 0:00:01]} Rxe6 {[%emt 0:00:02]} 31. Bxc3 $11 {[%emt 0:00:01][%mdl 4096] Endgame. KRB-KRB} Rc6 {[%emt 0:00:05]} 32. Bd2 {[%emt 0:00:02]} Rxc1+ {[%emt 0:00:01]} 33. Bxc1 {[%emt 0:00:01] KB-KB} a6 {[%emt 0:00:00]} 34. Bd2 {[%emt 0:00:04]} Bd3 {[%emt 0:00:01]} 35. Bc1 {[%emt 0:00:01]} Bb5 {[%emt 0:00:01]} 36. Bd2 {[%emt 0:00:01]} Bd3 {[%emt 0:00:01]} 37. Bc1 {[%emt 0:00:01]} Bb5 {[%emt 0:00:00]} 38. Bd2 {[%emt 0:00:01]} Bd3 {[%emt 0:00:01] A rather calm draw.   Weighted Error Value: White=0.02 (flawless) /Black=0.03 (flawless) .  Inaccurate:     	White=1     	---        OK:         	White=16    	Black=14     Strong:       	---       	Black=1} 1/2-1/2